[Event "*** SCC Grand Prix: Titled Tuesday Blitz"]
[Site "Chess.com"]
[Date "2020.08.25"]
[Round "6"]
[White "Bulldog167"]
[Black "Kavyev_Ruslan"]
[Result "1-0"]
[WhiteElo "2684"]
[BlackElo "2487"]
[TimeControl "180+1"]
[EndTime "11:05:16 PDT"]
[Termination "Bulldog167 won by resignation"]

1. c4 {[%clk 0:03:00.9]} 1... c5 {[%clk 0:02:59.6]} 2. Nf3 {[%clk 0:02:59.9]}
2... Nf6 {[%clk 0:02:59.8]} 3. b3 {[%clk 0:02:59.8]} 3... g6 {[%clk 0:02:59.8]}
4. Bb2 {[%clk 0:03:00.4]} 4... Bg7 {[%clk 0:03:00.7]} 5. g3 {[%clk 0:03:01.1]}
5... b6 {[%clk 0:03:00.8]} 6. Bg2 {[%clk 0:03:01.5]} 6... Bb7 {[%clk 0:03:01.5]}
7. O-O {[%clk 0:03:00]} 7... O-O {[%clk 0:03:02.1]} 8. Nc3 {[%clk 0:02:58.1]}
8... Nc6 {[%clk 0:03:02]} 9. d4 {[%clk 0:02:57.9]} 9... Nxd4 {[%clk 0:03:01.2]}
10. Nxd4 {[%clk 0:02:58.8]} 10... Bxg2 {[%clk 0:03:01.5]} 11. Kxg2 {[%clk
0:02:59.2]} 11... cxd4 {[%clk 0:03:02]} 12. Qxd4 {[%clk 0:03:00.1]} 12... d6
{[%clk 0:02:58.9]} 13. Rfd1 {[%clk 0:02:49.8]} 13... Qc7 {[%clk 0:02:59]} 14. f3
{[%clk 0:02:47.7]} 14... Rfd8 {[%clk 0:02:55.4]} 15. e4 {[%clk 0:02:46.3]} 15...
Rac8 {[%clk 0:02:55.4]} 16. Rd2 {[%clk 0:02:42.1]} 16... Qb7 {[%clk 0:02:45.1]}
17. Rad1 {[%clk 0:02:41.1]} 17... h5 {[%clk 0:02:35.4]} 18. h4 {[%clk
0:02:38.9]} 18... Kh7 {[%clk 0:02:28.6]} 19. Nd5 {[%clk 0:02:34.9]} 19... Rd7
{[%clk 0:02:16.9]} 20. a4 {[%clk 0:02:33.5]} 20... Qc6 {[%clk 0:02:12]} 21. Qe3
{[%clk 0:02:26.9]} 21... Qc5 {[%clk 0:02:09.3]} 22. Qxc5 {[%clk 0:02:18.9]}
22... bxc5 {[%clk 0:01:55.2]} 23. Nxf6+ {[%clk 0:02:18.8]} 23... Bxf6 {[%clk
0:01:52.7]} 24. Bxf6 {[%clk 0:02:18.9]} 24... exf6 {[%clk 0:01:53.6]} 25. Rxd6
{[%clk 0:02:19.2]} 25... Rb7 {[%clk 0:01:53.9]} 26. R1d3 {[%clk 0:02:11.4]}
26... Rcb8 {[%clk 0:01:53.8]} 27. Rxf6 {[%clk 0:02:10.7]} 27... Kg7 {[%clk
0:01:52.1]} 28. Rc6 {[%clk 0:02:06.9]} 28... Rxb3 {[%clk 0:01:51.9]} 29. Rxb3
{[%clk 0:02:07.2]} 29... Rxb3 {[%clk 0:01:52.8]} 30. Rxc5 {[%clk 0:02:07.7]}
30... Rc3 {[%clk 0:01:53.1]} 31. a5 {[%clk 0:02:05.8]} 31... Rc2+ {[%clk
0:01:52.7]} 32. Kf1 {[%clk 0:02:04.3]} 32... Kf6 {[%clk 0:01:50.9]} 33. Rc7
{[%clk 0:02:02.5]} 33... Ke6 {[%clk 0:01:50.7]} 34. a6 {[%clk 0:01:59.6]} 34...
f6 {[%clk 0:01:49.2]} 35. Rxa7 {[%clk 0:01:57.1]} 35... Rxc4 {[%clk 0:01:49.5]}
36. Rg7 {[%clk 0:01:57.2]} 36... Ra4 {[%clk 0:01:49.8]} 37. Rxg6 {[%clk
0:01:54.6]} 37... Rxa6 {[%clk 0:01:50.5]} 38. Rh6 {[%clk 0:01:53.8]} 38... Ra5
{[%clk 0:01:50.7]} 39. f4 {[%clk 0:01:51]} 39... Ra3 {[%clk 0:01:49.8]} 40. Kg2
{[%clk 0:01:50.2]} 1-0

[Event "*** SCC Grand Prix: Titled Tuesday Blitz"]
[Site "Chess.com"]
[Date "2020.08.25"]
[Round "6"]
[White "carlsen1001"]
[Black "LaPorfia"]
[Result "1-0"]
[WhiteElo "2400"]
[BlackElo "2224"]
[TimeControl "180+1"]
[EndTime "11:05:19 PDT"]
[Termination "carlsen1001 won by resignation"]

1. e4 {[%clk 0:03:00.9]} 1... d5 {[%clk 0:02:59.4]} 2. exd5 {[%clk 0:03:00.6]}
2... Nf6 {[%clk 0:02:59.4]} 3. Nf3 {[%clk 0:03:01.2]} 3... Bg4 {[%clk
0:02:58.5]} 4. Bb5+ {[%clk 0:02:57.8]} 4... Nbd7 {[%clk 0:02:57.7]} 5. O-O
{[%clk 0:02:57.5]} 5... Nxd5 {[%clk 0:02:52.6]} 6. Nc3 {[%clk 0:02:57]} 6... c6
{[%clk 0:02:50.7]} 7. Nxd5 {[%clk 0:02:52.2]} 7... cxd5 {[%clk 0:02:44.5]} 8. d4
{[%clk 0:02:49.2]} 8... a6 {[%clk 0:02:42.6]} 9. Be2 {[%clk 0:02:48.4]} 9... e6
{[%clk 0:02:41.8]} 10. Bf4 {[%clk 0:02:48.5]} 10... Be7 {[%clk 0:02:41.3]} 11.
h3 {[%clk 0:02:47.2]} 11... Bh5 {[%clk 0:02:40.6]} 12. c3 {[%clk 0:02:47.1]}
12... O-O {[%clk 0:02:40]} 13. a4 {[%clk 0:02:47.4]} 13... Rc8 {[%clk 0:02:38]}
14. Qb3 {[%clk 0:02:46.1]} 14... Qb6 {[%clk 0:02:34.4]} 15. Qxb6 {[%clk
0:02:43.8]} 15... Nxb6 {[%clk 0:02:34.1]} 16. g4 {[%clk 0:02:43.3]} 16... Bg6
{[%clk 0:02:33.4]} 17. Ne5 {[%clk 0:02:43.9]} 17... Bf6 {[%clk 0:02:17.1]} 18.
a5 {[%clk 0:02:42.5]} 18... Bxe5 {[%clk 0:02:14.4]} 19. Bxe5 {[%clk 0:02:29]}
19... Nc4 {[%clk 0:02:13.9]} 20. Ra2 {[%clk 0:02:24.3]} 20... f6 {[%clk
0:01:56.1]} 21. Bg3 {[%clk 0:02:19.6]} 21... Rfe8 {[%clk 0:01:42.8]} 22. b3
{[%clk 0:02:16.7]} 22... Nxa5 {[%clk 0:01:29.7]} 23. Rxa5 {[%clk 0:02:16]} 23...
Rxc3 {[%clk 0:01:30.2]} 24. b4 {[%clk 0:02:11.2]} 24... Bd3 {[%clk 0:01:19.3]}
25. Bxd3 {[%clk 0:02:05.6]} 25... Rxd3 {[%clk 0:01:19.5]} 26. b5 {[%clk
0:02:06.4]} 26... Rxd4 {[%clk 0:01:15.9]} 27. bxa6 {[%clk 0:02:06.2]} 27... bxa6
{[%clk 0:01:16.2]} 28. Rxa6 {[%clk 0:02:06.7]} 28... e5 {[%clk 0:01:15.3]} 29.
Re1 {[%clk 0:02:05.5]} 29... g5 {[%clk 0:01:08.7]} 30. Rxf6 {[%clk 0:01:59.9]}
1-0

[Event "*** SCC Grand Prix: Titled Tuesday Blitz"]
[Site "Chess.com"]
[Date "2020.08.25"]
[Round "6"]
[White "parintele_chess"]
[Black "Chess_Dog06"]
[Result "0-1"]
[WhiteElo "2148"]
[BlackElo "2298"]
[TimeControl "180+1"]
[EndTime "11:05:29 PDT"]
[Termination "Chess_Dog06 won by resignation"]

1. d4 {[%clk 0:03:00.6]} 1... Nf6 {[%clk 0:02:56.6]} 2. c4 {[%clk 0:02:57.1]}
2... e6 {[%clk 0:02:56.7]} 3. Nc3 {[%clk 0:02:56.8]} 3... Bb4 {[%clk 0:02:57.4]}
4. e3 {[%clk 0:02:57]} 4... O-O {[%clk 0:02:57.2]} 5. Ne2 {[%clk 0:02:57]} 5...
Re8 {[%clk 0:02:57.9]} 6. a3 {[%clk 0:02:57]} 6... Bf8 {[%clk 0:02:58.6]} 7. Ng3
{[%clk 0:02:54.3]} 7... d5 {[%clk 0:02:57.6]} 8. Bd3 {[%clk 0:02:51.8]} 8... a6
{[%clk 0:02:50.9]} 9. O-O {[%clk 0:02:50.4]} 9... dxc4 {[%clk 0:02:51.3]} 10.
Bxc4 {[%clk 0:02:50.1]} 10... b5 {[%clk 0:02:52.2]} 11. Be2 {[%clk 0:02:50.1]}
11... Bb7 {[%clk 0:02:52.7]} 12. Bf3 {[%clk 0:02:49.9]} 12... Qc8 {[%clk
0:02:50.9]} 13. e4 {[%clk 0:02:33.8]} 13... Nbd7 {[%clk 0:02:49.4]} 14. e5
{[%clk 0:02:29.4]} 14... Nd5 {[%clk 0:02:47.4]} 15. Nxd5 {[%clk 0:02:29.2]}
15... Bxd5 {[%clk 0:02:47.6]} 16. Bxd5 {[%clk 0:02:28.9]} 16... exd5 {[%clk
0:02:48.5]} 17. Qf3 {[%clk 0:02:21.7]} 17... Nb6 {[%clk 0:02:43.7]} 18. Nf5
{[%clk 0:02:19.2]} 18... Qe6 {[%clk 0:02:42.4]} 19. Qg4 {[%clk 0:01:55.2]} 19...
Qg6 {[%clk 0:02:42.2]} 20. Qxg6 {[%clk 0:01:50.3]} 20... hxg6 {[%clk 0:02:43.1]}
21. Ne3 {[%clk 0:01:49.5]} 21... c5 {[%clk 0:02:43.2]} 22. dxc5 {[%clk
0:01:41.8]} 22... Bxc5 {[%clk 0:02:44.1]} 23. f4 {[%clk 0:01:41.5]} 23... Nc4
{[%clk 0:02:42.1]} 24. Kf2 {[%clk 0:01:39.4]} 24... f6 {[%clk 0:02:37.8]} 25.
Kf3 {[%clk 0:01:27.7]} 25... fxe5 {[%clk 0:02:36.3]} 26. Nxc4 {[%clk 0:01:25.7]}
26... dxc4 {[%clk 0:02:36.1]} 27. fxe5 {[%clk 0:01:24.6]} 27... Rxe5 {[%clk
0:02:37]} 28. Bf4 {[%clk 0:01:25.1]} 28... Rf8 {[%clk 0:02:36.9]} 29. Kg3 {[%clk
0:01:24.8]} 29... Ref5 {[%clk 0:02:35.6]} 30. Kg4 {[%clk 0:01:15.4]} 30... g5
{[%clk 0:02:32.2]} 31. g3 {[%clk 0:01:12.7]} 31... gxf4 {[%clk 0:02:32.5]} 32.
gxf4 {[%clk 0:01:13.6]} 32... Bd6 {[%clk 0:02:32.1]} 33. Rf3 {[%clk 0:01:11.4]}
33... Rxf4+ {[%clk 0:02:32.4]} 34. Rxf4 {[%clk 0:01:11]} 34... Rxf4+ {[%clk
0:02:33.3]} 35. Kg5 {[%clk 0:01:11.7]} 35... Rd4 {[%clk 0:02:33.7]} 36. Re1
{[%clk 0:01:11.5]} 36... Rd2 {[%clk 0:02:31.6]} 37. Re6 {[%clk 0:01:10.7]} 37...
Bf8 {[%clk 0:02:30.3]} 38. Rxa6 {[%clk 0:01:10.6]} 38... Rxb2 {[%clk 0:02:30.9]}
39. Rb6 {[%clk 0:01:10.5]} 39... c3 {[%clk 0:02:31]} 40. a4 {[%clk 0:01:06.6]}
40... bxa4 {[%clk 0:02:30.3]} 0-1

[Event "*** SCC Grand Prix: Titled Tuesday Blitz"]
[Site "Chess.com"]
[Date "2020.08.25"]
[Round "6"]
[White "MFBerna"]
[Black "abfchess"]
[Result "1-0"]
[WhiteElo "2446"]
[BlackElo "2161"]
[TimeControl "180+1"]
[EndTime "11:05:41 PDT"]
[Termination "MFBerna won by resignation"]

1. d4 {[%clk 0:03:00.9]} 1... d5 {[%clk 0:02:58.8]} 2. Nc3 {[%clk 0:02:59.2]}
2... c6 {[%clk 0:02:58.9]} 3. Bf4 {[%clk 0:02:59.1]} 3... Bf5 {[%clk 0:02:58.6]}
4. e3 {[%clk 0:02:59.2]} 4... Nf6 {[%clk 0:02:57.8]} 5. Bd3 {[%clk 0:02:59.3]}
5... Bxd3 {[%clk 0:02:55.9]} 6. Qxd3 {[%clk 0:03:00.2]} 6... e6 {[%clk
0:02:55.8]} 7. Nf3 {[%clk 0:02:54]} 7... Bd6 {[%clk 0:02:54.8]} 8. O-O {[%clk
0:02:43.7]} 8... Bxf4 {[%clk 0:02:54.1]} 9. exf4 {[%clk 0:02:44.6]} 9... O-O
{[%clk 0:02:53.8]} 10. Rfe1 {[%clk 0:02:40.6]} 10... Qd6 {[%clk 0:02:44.2]} 11.
g3 {[%clk 0:02:36.8]} 11... Na6 {[%clk 0:02:36.5]} 12. a3 {[%clk 0:02:36.1]}
12... Nc7 {[%clk 0:02:35.6]} 13. Kg2 {[%clk 0:02:35.1]} 13... c5 {[%clk
0:02:35]} 14. Ne5 {[%clk 0:02:27.8]} 14... cxd4 {[%clk 0:02:33.3]} 15. Qxd4
{[%clk 0:02:28.7]} 15... Rac8 {[%clk 0:02:27.3]} 16. Rad1 {[%clk 0:02:28]} 16...
Na6 {[%clk 0:02:23.7]} 17. Qxa7 {[%clk 0:02:11.4]} 17... Nc5 {[%clk 0:02:17.7]}
18. Qa5 {[%clk 0:02:07.5]} 18... b6 {[%clk 0:02:10.6]} 19. Qb4 {[%clk 0:02:07]}
19... Qb8 {[%clk 0:02:05.4]} 20. Qd4 {[%clk 0:01:56.8]} 20... Nce4 {[%clk
0:02:04.7]} 21. Nxe4 {[%clk 0:01:55.9]} 21... dxe4 {[%clk 0:02:03.9]} 22. c4
{[%clk 0:01:48.7]} 22... Rfd8 {[%clk 0:02:02.8]} 23. Qe3 {[%clk 0:01:45.6]}
23... Qb7 {[%clk 0:02:00.9]} 24. Rd4 {[%clk 0:01:38.1]} 24... Rxd4 {[%clk
0:01:54.4]} 25. Qxd4 {[%clk 0:01:39]} 25... b5 {[%clk 0:01:55.3]} 26. cxb5
{[%clk 0:01:15.8]} 26... e3+ {[%clk 0:01:53.7]} 27. f3 {[%clk 0:01:01.9]} 27...
Rc2+ {[%clk 0:01:51.4]} 28. Kh3 {[%clk 0:01:00.5]} 28... e2 {[%clk 0:01:48.2]}
29. Qd8+ {[%clk 0:01:00]} 1-0

[Event "*** SCC Grand Prix: Titled Tuesday Blitz"]
[Site "Chess.com"]
[Date "2020.08.25"]
[Round "6"]
[White "Sesleria"]
[Black "FMOlexandrProhorov"]
[Result "1-0"]
[WhiteElo "2063"]
[BlackElo "2153"]
[TimeControl "180+1"]
[EndTime "11:05:58 PDT"]
[Termination "Sesleria won by resignation"]

1. e4 {[%clk 0:03:00.9]} 1... c5 {[%clk 0:02:59.9]} 2. Nf3 {[%clk 0:03:00.4]}
2... e6 {[%clk 0:03:00.4]} 3. d4 {[%clk 0:03:00.6]} 3... cxd4 {[%clk 0:03:01.3]}
4. Nxd4 {[%clk 0:03:01.1]} 4... Qb6 {[%clk 0:03:01.7]} 5. Nc3 {[%clk 0:03:00.1]}
5... Bc5 {[%clk 0:03:01.9]} 6. Be3 {[%clk 0:02:58.1]} 6... Nf6 {[%clk 0:03:01]}
7. Ndb5 {[%clk 0:02:51.6]} 7... Bxe3 {[%clk 0:02:57]} 8. fxe3 {[%clk 0:02:44.5]}
8... O-O {[%clk 0:02:57.1]} 9. Qd4 {[%clk 0:02:34.9]} 9... Qa5 {[%clk
0:02:52.4]} 10. b4 {[%clk 0:02:32.2]} 10... Qd8 {[%clk 0:02:49.7]} 11. Nd6
{[%clk 0:02:15.7]} 11... Nc6 {[%clk 0:02:48.9]} 12. Qc4 {[%clk 0:02:00.3]} 12...
Qe7 {[%clk 0:02:45.7]} 13. Rd1 {[%clk 0:01:53.7]} 13... Ng4 {[%clk 0:02:40.7]}
14. Be2 {[%clk 0:01:19.2]} 14... Nge5 {[%clk 0:02:38.5]} 15. Qb3 {[%clk
0:01:17.7]} 15... a5 {[%clk 0:02:18.6]} 16. b5 {[%clk 0:01:14.1]} 16... a4
{[%clk 0:02:08.6]} 17. Nxa4 {[%clk 0:01:02.2]} 17... Na5 {[%clk 0:01:43.9]} 18.
Qc3 {[%clk 0:01:01.7]} 18... Nac4 {[%clk 0:01:17.4]} 19. Nxc4 {[%clk 0:00:51]}
19... Rxa4 {[%clk 0:01:12.2]} 1-0

[Event "*** SCC Grand Prix: Titled Tuesday Blitz"]
[Site "Chess.com"]
[Date "2020.08.25"]
[Round "6"]
[White "skiff134"]
[Black "ChristopherYoo"]
[Result "1-0"]
[WhiteElo "2692"]
[BlackElo "2820"]
[TimeControl "180+1"]
[EndTime "11:06:04 PDT"]
[Termination "skiff134 won on time"]

1. d4 {[%clk 0:03:00.9]} 1... Nf6 {[%clk 0:02:59.3]} 2. c4 {[%clk 0:02:59.7]}
2... g6 {[%clk 0:02:57.2]} 3. Nc3 {[%clk 0:02:55]} 3... d5 {[%clk 0:02:56.8]} 4.
Bf4 {[%clk 0:02:54]} 4... Bg7 {[%clk 0:02:56]} 5. Nf3 {[%clk 0:02:52.8]} 5...
O-O {[%clk 0:02:44.3]} 6. Rc1 {[%clk 0:02:52.2]} 6... dxc4 {[%clk 0:02:30.2]} 7.
e4 {[%clk 0:02:51.7]} 7... c5 {[%clk 0:02:23.6]} 8. dxc5 {[%clk 0:02:50.9]} 8...
Qa5 {[%clk 0:02:20.1]} 9. e5 {[%clk 0:02:50.9]} 9... Rd8 {[%clk 0:02:13.6]} 10.
Bd2 {[%clk 0:02:50.2]} 10... Ng4 {[%clk 0:01:57.6]} 11. Bxc4 {[%clk 0:02:49.8]}
11... Qxc5 {[%clk 0:01:20.6]} 12. Ne4 {[%clk 0:02:48.5]} 12... Qb6 {[%clk
0:01:15.1]} 13. Bxf7+ {[%clk 0:02:48.4]} 13... Kxf7 {[%clk 0:01:08.6]} 14. Nfg5+
{[%clk 0:02:46.6]} 14... Kg8 {[%clk 0:01:08.1]} 15. Rxc8 {[%clk 0:02:46.6]}
15... Rxc8 {[%clk 0:00:54.8]} 16. Qxg4 {[%clk 0:02:46]} 16... Rd8 {[%clk
0:00:55]} 17. Nd6 {[%clk 0:02:45.7]} 17... Rxd6 {[%clk 0:00:17.6]} 18. exd6
{[%clk 0:02:40.7]} 18... Qxd6 {[%clk 0:00:18.5]} 19. Qc4+ {[%clk 0:02:25.8]}
19... e6 {[%clk 0:00:17.9]} 20. Nxe6 {[%clk 0:02:26.1]} 20... Qe5+ {[%clk
0:00:04.8]} 21. Be3 {[%clk 0:02:16.4]} 21... Qa5+ {[%clk 0:00:03.1]} 22. b4
{[%clk 0:02:15.4]} 22... Qa6 {[%clk 0:00:02.9]} 23. b5 {[%clk 0:02:03.8]} 23...
Qa5+ {[%clk 0:00:01.4]} 24. Bd2 {[%clk 0:02:03.8]} 1-0

[Event "*** SCC Grand Prix: Titled Tuesday Blitz"]
[Site "Chess.com"]
[Date "2020.08.25"]
[Round "6"]
[White "BikingBrian"]
[Black "RU_B9"]
[Result "1/2-1/2"]
[WhiteElo "2261"]
[BlackElo "1844"]
[TimeControl "180+1"]
[EndTime "11:06:05 PDT"]
[Termination "Game drawn by agreement"]

1. d4 {[%clk 0:03:00.9]} 1... Nf6 {[%clk 0:02:57.7]} 2. Bg5 {[%clk 0:02:58.5]}
2... d5 {[%clk 0:02:54]} 3. Nd2 {[%clk 0:02:57.5]} 3... Nbd7 {[%clk 0:02:53.2]}
4. e3 {[%clk 0:02:55.7]} 4... h6 {[%clk 0:02:53.5]} 5. Bh4 {[%clk 0:02:55.3]}
5... e5 {[%clk 0:02:44.8]} 6. dxe5 {[%clk 0:02:55.2]} 6... Nxe5 {[%clk
0:02:44.1]} 7. Ngf3 {[%clk 0:02:55.6]} 7... Ng6 {[%clk 0:02:36.7]} 8. Bg3 {[%clk
0:02:53.4]} 8... Bf5 {[%clk 0:02:35]} 9. c3 {[%clk 0:02:52.6]} 9... c6 {[%clk
0:02:35]} 10. h3 {[%clk 0:02:46]} 10... Ne4 {[%clk 0:02:28.9]} 11. Nxe4 {[%clk
0:02:41.3]} 11... Bxe4 {[%clk 0:02:29.8]} 12. Bd3 {[%clk 0:02:38.7]} 12... Bxd3
{[%clk 0:02:22.5]} 13. Qxd3 {[%clk 0:02:38.4]} 13... Bd6 {[%clk 0:02:23]} 14.
Bxd6 {[%clk 0:02:35.2]} 14... Qxd6 {[%clk 0:02:23.9]} 15. O-O {[%clk 0:02:30.8]}
15... Rd8 {[%clk 0:02:20.3]} 16. Rad1 {[%clk 0:02:30]} 16... O-O {[%clk
0:02:12.4]} 17. e4 {[%clk 0:02:28.9]} 17... Ne5 {[%clk 0:02:10.3]} 18. Nxe5
{[%clk 0:02:28.8]} 18... Qxe5 {[%clk 0:02:10.2]} 19. exd5 {[%clk 0:02:28.1]}
19... Rxd5 {[%clk 0:02:09.4]} 20. Qf3 {[%clk 0:02:26.2]} 20... Rfd8 {[%clk
0:02:06.8]} 21. Rxd5 {[%clk 0:02:22.5]} 21... Rxd5 {[%clk 0:01:56.4]} 22. Rd1
{[%clk 0:02:21.3]} 22... Rxd1+ {[%clk 0:01:28.3]} 23. Qxd1 {[%clk 0:02:22.2]}
23... g6 {[%clk 0:01:23.2]} 24. g3 {[%clk 0:02:17.4]} 24... h5 {[%clk
0:01:22.4]} 25. h4 {[%clk 0:02:16.7]} 25... Kg7 {[%clk 0:01:22.1]} 26. Qd7
{[%clk 0:02:11.2]} 26... Qe1+ {[%clk 0:01:20]} 27. Kg2 {[%clk 0:02:10.9]} 27...
Qe4+ {[%clk 0:01:20.3]} 28. Kg1 {[%clk 0:02:00.2]} 28... Qb1+ {[%clk 0:01:18.9]}
29. Kg2 {[%clk 0:01:57.4]} 29... Qe4+ {[%clk 0:01:18.4]} 30. Kh2 {[%clk
0:01:54]} 30... Qe2 {[%clk 0:01:12.8]} 31. Qd4+ {[%clk 0:01:52]} 31... Kg8
{[%clk 0:01:12]} 32. c4 {[%clk 0:01:52.1]} 32... Qg4 {[%clk 0:00:57]} 33. Qxa7
{[%clk 0:01:43.9]} 33... Qxc4 {[%clk 0:00:55.5]} 34. Qxb7 {[%clk 0:01:43.7]}
34... Qxa2 {[%clk 0:00:55]} 35. Qxc6 {[%clk 0:01:33.5]} 35... Qxb2 {[%clk
0:00:54.9]} 1/2-1/2

[Event "*** SCC Grand Prix: Titled Tuesday Blitz"]
[Site "Chess.com"]
[Date "2020.08.25"]
[Round "6"]
[White "PSvidler"]
[Black "GregShahade"]
[Result "1-0"]
[WhiteElo "2953"]
[BlackElo "2673"]
[TimeControl "180+1"]
[EndTime "11:06:26 PDT"]
[Termination "PSvidler won on time"]

1. c4 {[%clk 0:03:00.9]} 1... Nf6 {[%clk 0:02:59.5]} 2. g3 {[%clk 0:03:00.3]}
2... d5 {[%clk 0:02:58.7]} 3. cxd5 {[%clk 0:02:59.6]} 3... Nxd5 {[%clk
0:02:59.5]} 4. Bg2 {[%clk 0:02:59.4]} 4... g6 {[%clk 0:02:59.7]} 5. Nc3 {[%clk
0:02:59.2]} 5... Nxc3 {[%clk 0:02:54.5]} 6. bxc3 {[%clk 0:02:59.1]} 6... Bg7
{[%clk 0:02:53.6]} 7. Rb1 {[%clk 0:02:59.1]} 7... c5 {[%clk 0:02:47.8]} 8. Qa4+
{[%clk 0:02:37.4]} 8... Nc6 {[%clk 0:02:33.2]} 9. Ba3 {[%clk 0:02:34.2]} 9...
O-O {[%clk 0:02:21.8]} 10. Bxc5 {[%clk 0:02:33.8]} 10... Bd7 {[%clk 0:01:59.5]}
11. Rxb7 {[%clk 0:02:26.2]} 11... Rb8 {[%clk 0:01:59.5]} 12. Rxb8 {[%clk
0:02:01.8]} 12... Qxb8 {[%clk 0:01:57.6]} 13. Nf3 {[%clk 0:02:01.2]} 13... Nd4
{[%clk 0:01:09.7]} 14. Qd1 {[%clk 0:02:00.8]} 14... Ba4 {[%clk 0:01:09.7]} 15.
Qc1 {[%clk 0:02:00.9]} 15... Nc2+ {[%clk 0:01:07.7]} 16. Kf1 {[%clk 0:02:00.9]}
16... Rc8 {[%clk 0:00:43.6]} 17. Be3 {[%clk 0:01:56.4]} 17... Bxc3 {[%clk
0:00:14.1]} 18. dxc3 {[%clk 0:01:56.1]} 18... Rxc3 {[%clk 0:00:15]} 19. Qd2
{[%clk 0:01:48]} 19... Qb1+ {[%clk 0:00:13.6]} 20. Ne1 {[%clk 0:01:47.8]} 20...
Nxe3+ {[%clk 0:00:10.4]} 21. fxe3 {[%clk 0:01:47.8]} 21... Rc1 {[%clk
0:00:10.4]} 22. Kf2 {[%clk 0:01:46.7]} 22... Rd1 {[%clk 0:00:06.5]} 23. Qc3
{[%clk 0:01:43.7]} 23... Qf5+ {[%clk 0:00:05.5]} 24. Nf3 {[%clk 0:01:43.4]} 1-0

[Event "*** SCC Grand Prix: Titled Tuesday Blitz"]
[Site "Chess.com"]
[Date "2020.08.25"]
[Round "6"]
[White "MarcoRiehle"]
[Black "Artyom_ChessMate"]
[Result "1-0"]
[WhiteElo "2734"]
[BlackElo "2573"]
[TimeControl "180+1"]
[EndTime "11:06:29 PDT"]
[Termination "MarcoRiehle won by resignation"]

1. e4 {[%clk 0:03:00.5]} 1... c5 {[%clk 0:02:58.6]} 2. a3 {[%clk 0:02:59.6]}
2... g6 {[%clk 0:02:24]} 3. h4 {[%clk 0:02:58.6]} 3... h5 {[%clk 0:02:15.7]} 4.
Nc3 {[%clk 0:02:56.3]} 4... Bg7 {[%clk 0:02:13.4]} 5. Bc4 {[%clk 0:02:56]} 5...
Nc6 {[%clk 0:02:13.4]} 6. d3 {[%clk 0:02:54.9]} 6... Nf6 {[%clk 0:02:12.2]} 7.
Be3 {[%clk 0:02:51.2]} 7... d6 {[%clk 0:02:11.8]} 8. Nf3 {[%clk 0:02:51]} 8...
Bg4 {[%clk 0:02:10.3]} 9. Qd2 {[%clk 0:02:49.7]} 9... O-O {[%clk 0:02:03.9]} 10.
Ng5 {[%clk 0:02:43.7]} 10... Nd4 {[%clk 0:01:48.3]} 11. f3 {[%clk 0:02:41.6]}
11... Bd7 {[%clk 0:01:47]} 12. Bxd4 {[%clk 0:02:37.7]} 12... cxd4 {[%clk
0:01:47.9]} 13. Ne2 {[%clk 0:02:36.6]} 13... b5 {[%clk 0:01:42.1]} 14. Ba2
{[%clk 0:02:30.5]} 14... Rc8 {[%clk 0:01:36.8]} 15. Nf4 {[%clk 0:02:29.4]} 15...
e6 {[%clk 0:01:21.9]} 16. g4 {[%clk 0:02:27.9]} 16... Qc7 {[%clk 0:01:12.1]} 17.
O-O-O {[%clk 0:02:25.5]} 17... hxg4 {[%clk 0:00:54.3]} 18. h5 {[%clk 0:02:25.2]}
18... gxh5 {[%clk 0:00:48.7]} 19. Nxh5 {[%clk 0:02:22]} 19... Nxh5 {[%clk
0:00:48.8]} 20. Rxh5 {[%clk 0:02:19.4]} 20... g3 {[%clk 0:00:47.2]} 21. Rdh1
{[%clk 0:02:10.2]} 21... b4 {[%clk 0:00:25.4]} 22. Bb3 {[%clk 0:02:06.1]} 22...
bxa3 {[%clk 0:00:23.6]} 23. bxa3 {[%clk 0:02:02.7]} 23... Qc5 {[%clk 0:00:21]}
24. Qf4 {[%clk 0:01:58.4]} 24... Qxa3+ {[%clk 0:00:17.7]} 25. Kd2 {[%clk
0:01:51.4]} 25... Qa5+ {[%clk 0:00:17.4]} 26. Ke2 {[%clk 0:01:50.2]} 26... Qe5
{[%clk 0:00:16.3]} 27. Qh4 {[%clk 0:01:47.5]} 27... g2 {[%clk 0:00:15.7]} 28.
Rh8+ {[%clk 0:01:46.7]} 1-0

[Event "*** SCC Grand Prix: Titled Tuesday Blitz"]
[Site "Chess.com"]
[Date "2020.08.25"]
[Round "6"]
[White "IMAghasiyevKamal"]
[Black "Shubinkirill2003"]
[Result "0-1"]
[WhiteElo "2428"]
[BlackElo "2641"]
[TimeControl "180+1"]
[EndTime "11:06:32 PDT"]
[Termination "Shubinkirill2003 won by resignation"]

1. d4 {[%clk 0:02:59.9]} 1... e6 {[%clk 0:03:00.2]} 2. c4 {[%clk 0:02:58.5]}
2... Nf6 {[%clk 0:03:00.5]} 3. Nc3 {[%clk 0:02:49]} 3... Bb4 {[%clk 0:02:59.8]}
4. e3 {[%clk 0:02:48.2]} 4... O-O {[%clk 0:02:58.6]} 5. Ne2 {[%clk 0:02:47]}
5... d5 {[%clk 0:02:58.6]} 6. a3 {[%clk 0:02:42.7]} 6... Be7 {[%clk 0:02:58.1]}
7. cxd5 {[%clk 0:02:40.9]} 7... exd5 {[%clk 0:02:59]} 8. Nf4 {[%clk 0:02:41.3]}
8... c6 {[%clk 0:02:57.3]} 9. Bd3 {[%clk 0:02:40.2]} 9... Na6 {[%clk 0:02:57.7]}
10. O-O {[%clk 0:02:36.7]} 10... Nc7 {[%clk 0:02:57.6]} 11. f3 {[%clk
0:02:30.6]} 11... Ne6 {[%clk 0:02:57.4]} 12. Nxe6 {[%clk 0:02:26.8]} 12... Bxe6
{[%clk 0:02:55.6]} 13. Bc2 {[%clk 0:02:12.1]} 13... c5 {[%clk 0:02:53.9]} 14.
dxc5 {[%clk 0:01:53.8]} 14... Bxc5 {[%clk 0:02:52.2]} 15. Kh1 {[%clk 0:01:54]}
15... Rc8 {[%clk 0:02:48.5]} 16. Qd3 {[%clk 0:01:47.2]} 16... Qd7 {[%clk
0:02:23.8]} 17. b4 {[%clk 0:01:40.9]} 17... Bb6 {[%clk 0:02:18.4]} 18. Bb2
{[%clk 0:01:40.1]} 18... d4 {[%clk 0:02:12.9]} 19. Na4 {[%clk 0:00:40.1]} 19...
Bc4 {[%clk 0:02:04.2]} 20. Nxb6 {[%clk 0:00:35.7]} 20... axb6 {[%clk 0:02:05.1]}
21. Qf5 {[%clk 0:00:21.2]} 21... Bxf1 {[%clk 0:02:00.6]} 22. Qxd7 {[%clk
0:00:20.9]} 22... Nxd7 {[%clk 0:02:01.5]} 23. Bf5 {[%clk 0:00:21.1]} 23... Bb5
{[%clk 0:01:53.7]} 24. Bxd4 {[%clk 0:00:18.2]} 24... g6 {[%clk 0:01:48.6]} 25.
Bh3 {[%clk 0:00:13.2]} 25... f5 {[%clk 0:01:47.8]} 26. a4 {[%clk 0:00:12.9]}
26... Bxa4 {[%clk 0:01:44.2]} 27. b5 {[%clk 0:00:13.8]} 27... Bxb5 {[%clk
0:01:41.7]} 0-1